fUSD/lending_fUSD_20241221
["ID","MTS","AMOUNT","RATE_DAILY","PERIOD"]
[346147213,1734749434697,-500.0,0.00023287,4]
[346147214,1734749434707,-540.57920432,0.00023287,4]
[346147215,1734749434718,-499.12702328,0.00023287,4]
[346147216,1734749434731,-500.0,0.00023287,4]
[346147217,1734749434741,-509.26286979,0.00023287,4]
[346147218,1734749434752,-378.27489153,0.00023287,4]
[346147219,1734749434763,-195.34555024,0.00023287,4]
[346147220,1734749434775,-500.0,0.00023287,4]
[346147221,1734749434785,-287.69718859,0.00023287,4]
[346147222,1734749434796,-523.90579098,0.00023287,4]
[346147223,1734749434806,-215.53084575,0.00023287,4]
[346147224,1734749434818,-512.22029324,0.00023287,4]
[346147225,1734749434828,-509.08823732,0.00023287,4]
[346147226,1734749434839,-508.61882484,0.00023287,4]
[346147227,1734749434849,-513.962714,0.00023287,4]
[346147228,1734749434859,-500.0,0.00023287,4]
[346147229,1734749434870,-281.67921165,0.00023287,4]
[346147230,1734749434881,-505.97374714,0.00023287,4]
[346147231,1734749434891,-162.88313387,0.00023287,4]
[346147232,1734749434901,-506.93708414,0.00023287,4]
[346147233,1734749434912,-503.17988542,0.00023287,4]
[346147234,1734749434923,-515.22537013,0.00023287,4]
[346147235,1734749434933,-518.62408193,0.00023287,4]
[346147236,1734749434943,-507.1473731,0.00023287,4]
[346147237,1734749434954,-500.0,0.00023287,4]
[346147238,1734749434964,-500.0,0.00023287,4]
[346147239,1734749434975,-513.37023088,0.00023287,4]
[346147240,1734749434986,-500.0,0.00023287,4]
[346147241,1734749434998,-200.17587767,0.00023287,4]
[346147242,1734749435009,-500.0,0.00023287,4]
[346147243,1734749435019,-526.22,0.00023287,4]
[346147244,1734749435030,-500.0,0.00023287,4]
[346147245,1734749435040,-500.0,0.00023287,4]
[346147246,1734749435051,-500.0,0.00023287,4]
[346147247,1734749435061,-508.48917116,0.00023287,4]
[346147248,1734749435072,-500.0,0.00023287,4]
[346147249,1734749435083,-512.56267274,0.00023287,4]
[346147250,1734749435094,-507.47634613,0.00023287,4]
[346147251,1734749435105,-150.59794,0.00023287,4]
[346147252,1734749435116,-513.33597209,0.00023287,4]
[346147253,1734749435127,-157.346594,0.00023287,4]
[346147254,1734749435137,-500.0,0.00023287,4]
[346147255,1734749435148,-503.58732396,0.00023287,4]
[346147256,1734749435159,-500.0,0.00023287,4]
[346147257,1734749435169,-511.47446676,0.00023287,4]
[346147258,1734749435178,-350.30213107,0.00023287,4]
[346147259,1734749435187,-500.0,0.00023287,4]
[346147260,1734749435197,-500.0,0.00023287,4]
[346147261,1734749435206,-426.41062729,0.00023287,4]
[346147262,1734749435216,-500.0,0.00023287,4]
[346147263,1734749435451,-500.0,0.00023287,4]
[346147264,1734749435461,-506.36562442,0.00023287,4]
[346147265,1734749435471,-500.0,0.00023287,4]
[346147266,1734749435480,-511.19450109,0.00023287,4]
[346147267,1734749435489,-500.0,0.00023287,4]
[346147268,1734749435499,-558.9608728,0.00023287,4]
[346147269,1734749435508,-535.71549033,0.00023287,4]
[346147270,1734749435518,-505.70668668,0.00023287,4]
[346147271,1734749435527,-500.0,0.00023287,4]
[346147272,1734749435537,-516.98083128,0.00023287,4]
[346147273,1734749435546,-500.0,0.00023287,4]
[346147274,1734749435556,-500.0,0.00023287,4]
[346147275,1734749435565,-500.0,0.00023287,4]
[346147276,1734749435575,-506.55449406,0.00023287,4]
[346147277,1734749435584,-500.0,0.00023287,4]
[346147278,1734749435593,-500.0,0.00023287,4]
[346147279,1734749435602,-506.03133371,0.00023287,4]
[346147280,1734749435612,-504.51689596,0.00023287,4]
[346147281,1734749435622,-500.0,0.00023287,4]
[346147282,1734749435631,-500.0,0.00023287,4]
[346147283,1734749435640,-507.04014194,0.00023287,4]
[346147284,1734749435650,-500.0,0.00023287,4]
[346147285,1734749435660,-500.0,0.00023287,4]
[346147286,1734749435670,-500.0,0.00023287,4]
[346147287,1734749435680,-500.0,0.00023287,4]
[346147288,1734749435689,-500.0,0.00023287,4]
[346147289,1734749435699,-509.21600012,0.00023287,4]
[346147290,1734749435709,-507.08303382,0.00023287,4]
[346147291,1734749435718,-500.0,0.00023287,4]
[346147292,1734749435729,-500.0,0.00023287,4]
[346147293,1734749435738,-520.51903057,0.00023287,4]
[346147294,1734749435747,-507.31844308,0.00023287,4]
[346147295,1734749435757,-500.0,0.00023287,4]
[346147296,1734749435767,-156.33598247,0.00023287,4]
[346147297,1734749435777,-512.99267539,0.00023287,4]
[346147298,1734749435786,-583.04133607,0.00023287,4]
[346147299,1734749435795,-500.0,0.00023287,4]
[346147300,1734749435807,-284.540613,0.00023287,4]
[346147301,1734749435816,-500.0,0.00023287,4]
[346147302,1734749435825,-500.0,0.00023287,4]
[346147303,1734749435835,-609.83361582,0.00023287,4]
[346147304,1734749435845,-500.0,0.00023287,4]
[346147305,1734749435854,-213.07822705,0.00023287,4]
[346147306,1734749435863,-500.0,0.00023287,4]
[346147307,1734749435873,-500.0,0.00023287,4]
[346147308,1734749435882,-500.0,0.00023287,4]
[346147309,1734749435892,-500.0,0.00023287,4]
[346147310,1734749435901,-500.0,0.00023287,4]
[346147311,1734749435911,-625.52956916,0.00023287,4]
[346147312,1734749435921,-542.49398957,0.00023287,4]
[346147313,1734749435931,-500.0,0.00023287,4]
[346147314,1734749435940,-503.29472103,0.00023287,4]
[346147315,1734749435949,-502.25302569,0.00023287,4]
[346147316,1734749435959,-500.0,0.00023287,4]
[346147317,1734749435968,-504.36585622,0.00023287,4]
[346147318,1734749435978,-500.0,0.00023287,4]
[346147319,1734749435987,-500.0,0.00023287,4]
[346147320,1734749435996,-500.0,0.00023287,4]
[346147321,1734749436005,-500.0,0.00023287,4]
[346147322,1734749436014,-271.74331621,0.00023287,4]
[346147323,1734749436023,-500.0,0.00023287,4]
[346147324,1734749436032,-500.0,0.00023287,4]
[346147325,1734749436041,-290.28687493,0.00023287,4]
[346147326,1734749436050,-500.0,0.00023287,4]
[346147327,1734749436059,-544.63372468,0.00023287,4]
[346147328,1734749436069,-506.11883432,0.00023287,4]
[346147329,1734749436078,-500.0,0.00023287,4]
[346147330,1734749436088,-500.0,0.00023287,4]
[346147331,1734749436097,-500.0,0.00023287,4]
[346147332,1734749436106,-500.0,0.00023287,4]
[346147333,1734749436115,-500.0,0.00023287,4]
[346147334,1734749436124,-500.0,0.00023287,4]
[346147335,1734749436134,-585.10064333,0.00023287,4]
[346147336,1734749436143,-500.0,0.00023287,4]
[346147337,1734749436152,-504.34924615,0.00023287,4]
[346147338,1734749436163,-500.0,0.00023287,4]
[346147339,1734749436172,-500.0,0.00023287,4]
[346147340,1734749436182,-500.0,0.00023287,4]
[346147341,1734749436191,-5000.0,0.00023287,10]
[346147342,1734749436200,-505.26036877,0.00023287,4]
[346147343,1734749436210,-507.58725565,0.00023287,4]
[346147344,1734749436219,-506.53536474,0.00023287,4]
[346147345,1734749436227,-500.0,0.00023287,4]
[346147346,1734749436237,-500.0,0.00023287,4]
[346147347,1734749436246,-500.0,0.00023287,4]
[346147348,1734749436255,-219.62537975,0.00023287,4]
[346147349,1734749436264,-500.0,0.00023287,4]
[346147350,1734749436273,-500.0,0.00023287,4]
[346147351,1734749436283,-500.0,0.00023287,4]
[346147352,1734749436292,-500.0,0.00023287,4]
[346147353,1734749436301,-500.0,0.00023287,4]
[346147354,1734749436310,-500.0,0.00023287,4]
[346147355,1734749436319,-520.16750963,0.00023287,4]
[346147356,1734749436329,-500.0,0.00023287,4]
[346147357,1734749436338,-500.0,0.00023287,4]
[346147358,1734749436347,-582.26118575,0.00023287,4]
[346147359,1734749436356,-507.2602602,0.00023287,4]
[346147360,1734749436365,-504.18148738,0.00023287,4]
[346147361,1734749436374,-500.0,0.00023287,4]
[346147362,1734749436384,-500.0,0.00023287,4]
[346147363,1734749436393,-414.98343994,0.00023287,4]
[346147364,1734749436402,-500.0,0.00023287,4]
[346147365,1734749436413,-509.97193783,0.00023287,4]
[346147366,1734749436422,-507.05014555,0.00023287,4]
[346147367,1734749436433,-500.0,0.00023287,4]
[346147368,1734749436442,-500.0,0.00023287,4]
[346147369,1734749436451,-482.43767132,0.00023287,4]
[346147370,1734749436461,-500.0,0.00023287,4]
[346147371,1734749436471,-518.90942595,0.00023287,4]
[346147372,1734749436481,-510.93891251,0.00023287,4]
[346147373,1734749436490,-503.31331704,0.00023287,4]
[346147374,1734749436499,-503.46993947,0.00023287,4]
[346147375,1734749436508,-500.0,0.00023287,4]
[346147376,1734749436517,-503.68187797,0.00023287,4]
[346147377,1734749436527,-500.0,0.00023287,4]
[346147378,1734749436536,-501.53777217,0.00023287,4]
[346147379,1734749436545,-540.13285091,0.00023287,4]
[346147380,1734749436554,-516.03107883,0.00023287,4]
[346147381,1734749436563,-503.70004453,0.00023287,4]
[346147382,1734749436572,-170.40650359,0.00023287,4]
[346147383,1734749436581,-500.0,0.00023287,4]
[346147384,1734749436591,-468.65352582,0.00023287,4]
[346147385,1734749436600,-502.12270427,0.00023287,4]
[346147386,1734749436609,-506.9939852,0.00023287,4]
[346147387,1734749436618,-500.0,0.00023287,4]
[346147388,1734749436627,-500.0,0.00023287,4]
[346147389,1734749436636,-500.0,0.00023287,4]
[346147390,1734749436645,-500.0,0.00023287,4]
[346147391,1734749436655,-500.0,0.00023287,4]
[346147392,1734749436667,-518.28025208,0.00023287,4]
[346147393,1734749436677,-500.0,0.00023287,4]
[346147394,1734749436686,-500.0,0.00023287,4]
[346147395,1734749436695,-522.41747155,0.00023287,4]
[346147396,1734749436704,-502.00661118,0.00023287,4]
[346147397,1734749436713,-500.0,0.00023287,4]
[346147398,1734749436722,-500.0,0.00023287,4]
[346147399,1734749436735,-500.0,0.00023287,4]
[346147400,1734749436745,-218.32634364,0.00023287,4]
[346147401,1734749436756,-500.0,0.00023287,4]
[346147402,1734749436766,-500.0,0.00023287,4]
[346147403,1734749436777,-509.45575288,0.00023287,4]
[346147404,1734749436788,-500.0,0.00023287,4]
[346147405,1734749436798,-503.56904439,0.00023287,4]
[346147406,1734749436808,-521.28084048,0.00023287,4]
[346147407,1734749436820,-500.0,0.00023287,4]
[346147408,1734749436830,-500.0,0.00023287,4]
[346147409,1734749436839,-536.88052585,0.00023287,4]
[346147410,1734749436848,-500.0,0.00023287,4]
[346147411,1734749436857,-500.0,0.00023287,4]
[346147412,1734749436867,-500.0,0.00023287,4]
[346147413,1734749436876,-500.0,0.00023287,4]
[346147414,1734749436886,-500.0,0.00023287,4]
[346147415,1734749436895,-508.61112571,0.00023287,4]
[346147416,1734749436905,-500.0,0.00023287,4]
[346147417,1734749436914,-500.0,0.00023287,4]
[346147418,1734749436923,-500.0,0.00023287,4]
[346147419,1734749436934,-509.37282911,0.00023287,4]
[346147420,1734749436943,-509.66280598,0.00023287,4]
[346147421,1734749436952,-500.0,0.00023287,4]
[346147422,1734749436962,-500.0,0.00023287,4]
[346147423,1734749436971,-500.0,0.00023287,4]
[346147424,1734749436982,-500.0,0.00023287,4]
[346147425,1734749436991,-519.28990026,0.00023287,4]
[346147426,1734749437001,-235.14752947,0.00023287,4]
[346147427,1734749437010,-500.0,0.00023287,4]
[346147428,1734749437019,-500.0,0.00023287,4]
[346147429,1734749437028,-500.0,0.00023287,4]
[346147430,1734749437037,-553.42476502,0.00023287,4]
[346147431,1734749437047,-531.71357306,0.00023287,4]
[346147432,1734749437056,-500.0,0.00023287,4]
[346147433,1734749437065,-500.0,0.00023287,2]
[346147434,1734749437074,-500.0,0.00023287,2]
[346147435,1734749437083,-500.0,0.00023287,4]
[346147436,1734749437092,-500.0,0.00023287,4]
[346147437,1734749437101,-425.61479577,0.00023287,4]
[346147438,1734749437110,-500.0,0.00023287,4]
[346147439,1734749437119,-521.02949162,0.00023287,4]
[346147440,1734749437128,-528.40200713,0.00023287,4]
[346147441,1734749437138,-500.0,0.00023287,4]
[346147442,1734749437147,-500.0,0.00023287,4]
[346147443,1734749437156,-500.0,0.00023287,4]
[346147444,1734749437165,-500.0,0.00023287,4]
[346147445,1734749437174,-500.0,0.00023287,4]
[346147446,1734749437183,-534.82441286,0.00023287,4]
[346147447,1734749437192,-616.04853807,0.00023287,4]
[346147448,1734749437201,-500.0,0.00023287,4]
[346147449,1734749437210,-500.0,0.00023287,4]
[346147450,1734749437219,-500.0,0.00023287,4]
[346147451,1734749437229,-507.11331294,0.00023287,4]
[346147452,1734749437239,-500.0,0.00023287,4]
[346147453,1734749437248,-500.0,0.00023287,4]
[346147454,1734749437258,-511.45530297,0.00023287,4]
[346147455,1734749437267,-500.0,0.00023287,4]
[346147456,1734749437276,-500.0,0.00023287,4]
[346147457,1734749437285,-535.57084854,0.00023287,4]
[346147458,1734749437294,-500.0,0.00023287,4]
[346147459,1734749437304,-500.0,0.00023287,4]
[346147460,1734749437313,-500.0,0.00023287,4]
[346147461,1734749437322,-592.3695697,0.00023287,4]
[346147462,1734749437331,-506.65797303,0.00023287,4]
[346147463,1734749437341,-500.0,0.00023287,4]
[346147464,1734749437350,-500.0,0.00023287,4]
[346147465,1734749437359,-500.0,0.00023287,4]
[346147466,1734749437369,-500.0,0.00023287,4]
[346147467,1734749437378,-500.0,0.00023287,4]
[346147468,1734749437387,-513.47663537,0.00023287,4]
[346147469,1734749437396,-510.29346945,0.00023287,4]
[346147470,1734749437406,-500.0,0.00023287,4]
[346147471,1734749437415,-500.0,0.00023287,4]
[346147472,1734749437425,-500.0,0.00023287,4]
[346147473,1734749437434,-417.62782737,0.00023287,4]
[346147474,1734749437444,-556.87,0.00023287,4]
[346147475,1734749437453,-515.0626093,0.00023287,4]
[346147476,1734749437462,-500.0,0.00023287,4]
[346147477,1734749437472,-511.0559459,0.00023287,4]
[346147478,1734749437481,-500.0,0.00023287,4]
[346147479,1734749437490,-500.0,0.00023287,4]
[346147480,1734749437500,-500.0,0.00023287,4]
[346147481,1734749437509,-532.79157174,0.00023287,4]
[346147482,1734749437519,-500.0,0.00023287,4]
[346147483,1734749437528,-500.0,0.00023287,4]
[346147484,1734749437537,-623.41308641,0.00023287,4]
[346147485,1734749437548,-500.0,0.00023287,4]
[346147486,1734749437557,-500.0,0.00023287,4]
[346147487,1734749437567,-511.31586078,0.00023287,4]
[346147488,1734749437577,-500.0,0.00023287,4]
[346147489,1734749437587,-523.28796047,0.00023287,4]
[346147490,1734749437597,-500.0,0.00023287,4]
[346147491,1734749437606,-500.0,0.00023287,4]
[346147492,1734749437616,-500.0,0.00023287,4]
[346147493,1734749437626,-500.0,0.00023287,4]
[346147494,1734749437635,-500.0,0.00023287,4]
[346147495,1734749437645,-500.0,0.00023287,4]
[346147496,1734749437656,-500.0,0.00023287,4]
[346147497,1734749437665,-521.59236379,0.00023287,4]
[346147498,1734749437674,-500.0,0.00023287,4]
[346147499,1734749437684,-633.67751081,0.00023287,4]
[346147500,1734749437693,-502.2183248,0.00023287,4]
[346147501,1734749437703,-500.0,0.00023287,4]
[346147502,1734749437713,-500.0,0.00023287,4]
[346147503,1734749437723,-500.0,0.00023287,4]
[346147504,1734749437738,-500.0,0.00023287,4]
[346147505,1734749437747,-500.0,0.00023287,4]
[346147506,1734749437758,-569.39333959,0.00023287,4]
[346147507,1734749437768,-501.49563853,0.00023287,4]
[346147508,1734749437778,-502.26597934,0.00023287,4]
[346147509,1734749437787,-500.0,0.00023287,4]
[346147510,1734749437797,-500.0,0.00023287,4]
[346147511,1734749437808,-1000.0,0.00023287,5]
[346147512,1734749437818,-1000.0,0.00023287,5]
[346147513,1734749437827,-500.0,0.00023287,4]
[346147514,1734749437837,-534.48366549,0.00023287,4]
[346147515,1734749437847,-1000.0,0.00023287,5]
[346147516,1734749437856,-1079.65324286,0.00023287,5]
[346147517,1734749437866,-500.0,0.00023287,4]
[346147518,1734749437875,-500.0,0.00023287,4]
[346147519,1734749437885,-500.0,0.00023287,4]
[346147520,1734749437895,-500.0,0.00023287,4]
[346147521,1734749437905,-500.0,0.00023287,4]
[346147522,1734749437915,-500.0,0.00023287,4]
[346147523,1734749437924,-500.0,0.00023287,4]
[346147524,1734749437933,-500.0,0.00023287,4]
[346147525,1734749437943,-500.0,0.00023287,4]
[346147526,1734749437952,-239.15736795,0.00023287,4]
[346147527,1734749437961,-500.0,0.00023287,4]
[346147528,1734749437971,-500.0,0.00023287,4]
[346147529,1734749437980,-500.0,0.00023287,4]
[346147530,1734749437990,-500.0,0.00023287,4]
[346147531,1734749437999,-500.0,0.00023287,4]
[346147532,1734749438008,-500.0,0.00023287,4]
[346147533,1734749438017,-500.0,0.00023287,4]
[346147534,1734749438026,-332.0710505,0.00023287,4]
[346147535,1734749438035,-500.0,0.00023287,4]
[346147536,1734749438045,-500.0,0.00023287,4]
[346147537,1734749438055,-500.0,0.00023287,4]
[346147538,1734749438064,-500.0,0.00023287,4]
[346147539,1734749438074,-500.0,0.00023287,4]
[346147540,1734749438083,-500.0,0.00023287,4]
[346147541,1734749438092,-500.0,0.00023287,2]
[346147542,1734749438102,-500.0,0.00023287,2]
[346147543,1734749438111,-503.58728036,0.00023287,4]
[346147544,1734749438120,-500.0,0.00023287,2]
[346147545,1734749438130,-500.0,0.00023287,4]
[346147546,1734749438139,-500.0,0.00023287,2]
[346147547,1734749438148,-500.0,0.00023287,4]
[346147548,1734749438157,-500.0,0.00023287,2]
[346147549,1734749438167,-500.0,0.00023287,2]
[346147550,1734749438177,-500.0,0.00023287,4]
[346147551,1734749438187,-500.0,0.00023287,4]
[346147552,1734749438196,-500.0,0.00023287,4]
[346147553,1734749438205,-600.08857082,0.00023287,4]
[346147554,1734749438215,-501.84495193,0.00023287,4]
[346147555,1734749438224,-500.0,0.00023287,2]
[346147556,1734749438233,-500.0,0.00023287,2]
[346147557,1734749438243,-500.0,0.00023287,2]
[346147558,1734749438253,-500.0,0.00023287,2]
[346147559,1734749438262,-500.0,0.00023287,2]
[346147560,1734749438271,-500.0,0.00023287,2]
[346147561,1734749438280,-500.0,0.00023287,2]
[346147562,1734749438290,-500.0,0.00023287,2]
[346147563,1734749438300,-218.19356008,0.00023287,2]
[346147564,1734749438310,-500.0,0.00023287,4]
[346147565,1734749438320,-561.49696698,0.00023287,4]
[346147566,1734749438329,-526.07685758,0.00023287,4]
[346147567,1734749438340,-500.0,0.00023287,4]
[346147568,1734749438349,-500.0,0.00023287,4]
[346147569,1734749438359,-531.3957192,0.00023287,4]
[346147570,1734749438369,-500.0,0.00023287,4]
[346147571,1734749438379,-500.0,0.00023287,4]
[346147572,1734749438389,-500.0,0.00023287,4]
[346147573,1734749438399,-500.0,0.00023287,4]
[346147574,1734749438410,-170.79044263,0.00023287,4]
[346147575,1734749438419,-500.0,0.00023287,4]
[346147576,1734749438429,-500.0,0.00023287,4]
[346147577,1734749438439,-500.0,0.00023287,4]
[346147578,1734749438450,-521.65597977,0.00023287,4]
[346147579,1734749438460,-500.0,0.00023287,4]
[346147580,1734749438470,-500.0,0.00023287,4]
[346147581,1734749438480,-500.0,0.00023287,4]
[346147582,1734749438490,-500.0,0.00023287,4]
[346147583,1734749438499,-500.0,0.00023287,4]
[346147584,1734749438631,-500.0,0.00023287,4]
[346147585,1734749438641,-500.0,0.00023287,4]
[346147586,1734749438650,-500.0,0.00023287,4]
[346147587,1734749438659,-295.56382322,0.00023287,4]
[346147588,1734749438669,-500.0,0.00023287,4]
[346147589,1734749438678,-500.0,0.00023287,4]
[346147590,1734749438688,-500.0,0.00023287,4]
[346147591,1734749438697,-500.0,0.00023287,4]
[346147592,1734749438707,-500.0,0.00023287,4]
[346147593,1734749438716,-500.0,0.00023287,4]
[346147594,1734749438726,-522.71088342,0.00023287,4]
[346147595,1734749438738,-532.46865271,0.00023287,4]
[346147596,1734749438747,-500.0,0.00023287,4]
[346147597,1734749438757,-500.0,0.00023287,4]
[346147598,1734749438766,-500.0,0.00023287,4]
[346147599,1734749438777,-219.51524068,0.00023287,4]
[346147600,1734749438786,-500.0,0.00023287,4]
[346147601,1734749438795,-500.0,0.00023287,4]
[346147602,1734749438804,-500.0,0.00023287,4]
[346147603,1734749438815,-500.0,0.00023287,4]
[346147604,1734749438825,-433.34938975,0.00023287,4]
[346147605,1734749438834,-500.0,0.00023287,4]
[346147606,1734749438844,-500.0,0.00023287,4]
[346147607,1734749438853,-411.56987323,0.00023287,4]
[346147608,1734749438863,-500.0,0.00023287,4]
[346147609,1734749438872,-522.68811687,0.00023287,4]
[346147610,1734749438881,-504.74185425,0.00023287,4]
[346147611,1734749438892,-500.0,0.00023287,4]
[346147612,1734749438902,-646.8213885,0.00023287,4]
[346147613,1734749438912,-500.0,0.00023287,4]
[346147614,1734749438922,-482.34,0.00023287,4]
[346147616,1734749438931,-500.0,0.00023287,4]
[346147618,1734749438941,-521.5278375,0.00023287,4]
[346147620,1734749438950,-500.0,0.00023287,4]
[346147621,1734749438959,-500.0,0.00023287,4]
[346147622,1734749438968,-500.0,0.00023287,4]
[346147623,1734749438978,-500.0,0.00023287,4]
[346147624,1734749438988,-191.41927455,0.00023287,4]
[346147625,1734749439536,-150.0,0.00021839,2]
[346147626,1734749439546,-150.0,0.00021878,2]
[346147627,1734749439555,-150.0,0.00021973,2]
[346147628,1734749439565,-150.0,0.00021978,2]
[346147629,1734749439574,-150.0,0.0002198,2]
[346147630,1734749439583,-150.0,0.00021992,2]
[346147631,1734749439593,-150.0,0.00022037,2]
[346147632,1734749439603,-150.0,0.00022242,2]
[346147633,1734749439612,-150.0,0.00022262,2]
[346147634,1734749439621,-150.0,0.00022385,2]
[346147635,1734749439631,-150.0,0.00022406,2]
[346147636,1734749439640,-150.0,0.00022448,2]
[346147637,1734749439650,-150.0,0.0002245,2]
[346147638,1734749439664,-150.0,0.00022467,2]
[346147639,1734749439673,-150.0,0.00022514,2]
[346147640,1734749439683,-150.0,0.0002256,2]
[346147641,1734749439692,-150.0,0.00022609,2]
[346147642,1734749439702,-150.0,0.00022659,2]
[346147643,1734749439711,-150.0,0.00022671,2]
[346147644,1734749439720,-150.0,0.00022736,2]
[346147645,1734749439733,-150.0,0.0002289,2]
[346147646,1734749439744,-150.0,0.00022949,2]
[346147647,1734749439755,-150.0,0.00022955,2]
[346147648,1734749439766,-150.0,0.00023023,2]
[346147649,1734749439777,-150.0,0.00023101,2]
[346147650,1734749439788,-150.0,0.00023154,2]
[346147651,1734749439798,-150.0,0.00023209,2]
[346147652,1734749439808,-150.0,0.00023252,2]
[346147653,1734749439819,-150.0,0.00023258,2]
[346147654,1734749439831,-150.0,0.00023274,2]
[346147655,1734749439840,-317.55052448,0.00023287,4]
[346147656,1734749439851,-500.0,0.00023287,4]
[346147657,1734749439861,-500.0,0.00023287,4]
[346147658,1734749439871,-518.75163278,0.00023287,4]
[346147659,1734749439882,-500.0,0.00023287,4]
[346147660,1734749439891,-507.08966894,0.00023287,4]
[346147661,1734749439901,-500.0,0.00023287,4]
[346147662,1734749439911,-509.23420347,0.00023287,4]
[346147663,1734749439920,-507.85659961,0.00023287,4]
[346147664,1734749439930,-500.0,0.00023287,4]
[346147665,1734749439939,-500.0,0.00023287,4]
[346147666,1734749439948,-500.0,0.00023287,4]
[346147667,1734749439957,-500.0,0.00023287,4]
[346147668,1734749439967,-500.0,0.00023287,4]
[346147669,1734749439976,-500.0,0.00023287,4]
[346147670,1734749439985,-504.29,0.00023287,4]
[346147671,1734749439995,-500.0,0.00023287,4]
[346147672,1734749440004,-500.0,0.00023287,4]
[346147673,1734749440013,-500.0,0.00023287,4]
[346147674,1734749440023,-500.0,0.00023287,4]
[346147675,1734749440032,-500.0,0.00023287,4]
[346147676,1734749440041,-500.0,0.00023287,4]
[346147677,1734749440051,-573.00732554,0.00023287,4]
[346147678,1734749440060,-511.04141065,0.00023287,4]
[346147679,1734749440069,-500.0,0.00023287,4]
[346147680,1734749440079,-506.17311872,0.00023287,4]
[346147681,1734749440088,-500.0,0.00023287,4]
[346147682,1734749440097,-500.0,0.00023287,4]
[346147683,1734749440107,-500.0,0.00023287,4]
[346147684,1734749440116,-500.0,0.00023287,4]
[346147685,1734749440126,-500.0,0.00023287,4]
[346147686,1734749440135,-500.0,0.00023287,4]
[346147687,1734749440145,-500.0,0.00023287,4]
[346147688,1734749440154,-500.0,0.00023287,4]
[346147689,1734749440164,-500.0,0.00023287,4]
[346147690,1734749440173,-516.71923754,0.00023287,4]
[346147691,1734749440183,-500.0,0.00023287,4]
[346147692,1734749440192,-500.0,0.00023287,4]
[346147693,1734749440201,-500.0,0.00023287,4]
[346147694,1734749440211,-500.0,0.00023287,4]
[346147695,1734749440220,-500.0,0.00023287,4]
[346147696,1734749440229,-479.15328337,0.00023287,4]
[346147697,1734749440238,-508.67067918,0.00023287,4]
[346147698,1734749440248,-500.0,0.00023287,4]
[346147699,1734749440257,-500.0,0.00023287,4]
[346147700,1734749440267,-512.31899196,0.00023287,4]
[346147701,1734749440277,-384.99896335,0.00023287,4]
[346147702,1734749440286,-500.0,0.00023287,4]
[346147703,1734749440296,-221.81592752,0.00023287,4]
[346147704,1734749440305,-500.0,0.00023287,4]
[346147705,1734749440314,-516.84087961,0.00023287,4]
[346147706,1734749440324,-429.70810953,0.00023287,4]
[346147707,1734749440334,-500.0,0.00023287,4]
[346147708,1734749440343,-520.42589562,0.00023287,4]
[346147709,1734749440353,-500.0,0.00023287,4]
[346147710,1734749440362,-500.0,0.00023287,4]
[346147711,1734749440372,-500.0,0.00023287,4]
[346147712,1734749440381,-515.45996697,0.00023287,4]
[346147713,1734749440390,-500.0,0.00023287,4]
[346147714,1734749440399,-500.0,0.00023287,4]
[346147715,1734749440408,-500.0,0.00023287,4]